bitfinex/quotes_ETHUSD_20241001
["timestamp","ask_amount","ask_price","bid_price","bid_amount"]
[1727796948251,17.00769,2533.2,2531.2,1.569]
[1727796948252,5.48028,2532.6,2531.9,3.9496]
[1727796948538,1.5317,2532.6,2531.8,3.94972]
[1727796948714,1.5317,2532.6,2532.0,3.94932]
[1727796949029,3.94882,2532.4,2531.9,3.9495]
[1727796949233,3.94882,2532.4,2531.8,3.0]
[1727796949408,3.9487,2532.5,2532.0,3.94942]
[1727796949612,3.94875,2532.5,2531.9,3.94944]
[1727796950010,3.94875,2532.5,2532.0,3.94932]
[1727796950246,3.94875,2532.5,2531.9,3.94944]
[1727796950542,1.5317,2532.6,2532.2,3.9491]
[1727796950744,1.5317,2532.6,2532.0,3.94932]
[1727796951039,1.5317,2532.6,2532.2,3.949]
[1727796951255,1.5317,2532.6,2531.5,3.95022]
[1727796951256,3.9489,2532.4,2531.9,3.94953]
[1727796951401,3.9489,2532.4,2531.4,1.5193]
[1727796951402,3.94897,2532.3,2531.6,6.94997]
[1727796951601,1.5317,2532.6,2531.6,3.0]
[1727796951800,7.89777,2532.4,2531.9,3.94959]
[1727796952039,3.94839,2532.7,2532.2,3.94904]
[1727796952257,7.896,2533.0,2532.3,3.94891]
[1727796952440,9.47855,2533.2,2532.6,3.94837]
[1727796952648,3.94774,2533.1,2532.6,3.94837]
[1727796953137,3.94813,2532.9,2532.3,7.89779]
[1727796953348,7.89595,2533.0,2532.3,3.94889]
[1727796953547,7.89595,2533.0,2532.5,3.94866]
[1727796953548,7.89599,2533.0,2532.5,3.94866]
[1727796953748,3.94813,2532.9,2532.4,3.94881]
[1727796953906,3.94797,2533.0,2532.3,3.94889]
[1727796953907,3.94821,2532.8,2532.3,3.94889]
[1727796954110,4.03931575,2532.8,2532.1,1.6388]
[1727796954361,3.9486,2532.6,2532.1,3.94918]
[1727796954513,3.94882,2532.4,2532.0,3.94943]
[1727796954859,1.65439055,2532.7,2531.6,3.95005]
[1727796954860,3.94923,2532.2,2531.7,3.94988]
[1727796955010,0.09078348,2532.5,2531.4,1.5084]
[1727796955011,0.09086242,2532.3,2531.9,3.94959]
[1727796955336,3.94892,2532.4,2531.9,3.94951]
[1727796955521,1.5634,2532.7,2531.7,3.9499]
[1727796955522,0.09047282,2532.2,2531.7,3.9499]
[1727796955723,4.03957638,2532.3,2531.9,3.94958]
[1727796956054,0.09034023,2532.1,2531.7,7.89971]
[1727796956223,3.949,2532.3,2531.8,3.94966]
[1727796956407,0.09023665,2532.0,2531.9,3.9496]
[1727796956607,3.949,2532.3,2531.9,3.9496]
[1727796956837,3.949,2532.3,2531.8,3.94975]
[1727796956838,0.09042403,2532.0,2531.8,3.94975]
[1727796957047,7.89807,2532.3,2531.8,3.94975]
[1727796957241,3.9486,2532.6,2532.1,3.9492]
[1727796957446,0.09063116,2532.2,2532.1,3.9492]
[1727796957647,0.09063116,2532.2,2531.7,3.94977]
[1727796957648,3.94898,2532.3,2531.8,3.94974]
[1727796957817,0.09063114,2532.2,2531.8,3.94974]
[1727796958020,0.09063114,2532.2,2532.1,3.94929]
[1727796958324,5.57512,2533.0,2532.4,3.94867]
[1727796958605,5.57512,2533.0,2532.3,3.9489]
[1727796958606,3.94827,2532.8,2532.3,3.9489]
[1727796958772,3.9483,2532.8,2532.1,3.94916]
[1727796959122,3.94809,2532.9,2532.4,3.94881]
[1727796959281,3.94837,2532.7,2532.1,3.94916]
[1727796959626,3.94837,2532.7,2532.2,3.94913]
[1727796959912,3.94837,2532.7,2531.9,1.6196]
[1727796959913,3.9482,2532.8,2532.3,3.94884]
[1727796960118,3.9482,2532.8,2532.2,3.94913]
[1727796960274,3.94883,2532.4,2532.0,3.94934]
[1727796960477,1.6272,2533.0,2531.7,3.0]
[1727796960817,1.6272,2533.0,2531.6,1.6438]
[1727796960818,3.94765,2533.2,2532.6,3.94841]
[1727796961039,1.6083,2533.3,2532.7,0.07454604]
[1727796961308,1.6083,2533.3,2533.0,3.94787]
[1727796961614,5.5558,2533.3,2532.8,3.94816]
[1727796961775,1.6083,2533.3,2532.9,3.94794]
[1727796961972,5.55583,2533.3,2532.7,3.9482]
[1727796962219,3.94779,2533.1,2532.5,3.94853]
[1727796962399,3.948,2533.0,2532.5,3.94853]
[1727796962602,3.948,2533.0,2532.5,3.94859]
[1727796962785,7.89539,2533.2,2532.5,3.94857]
[1727796962988,1.6083,2533.3,2532.9,3.94803]
[1727796963309,5.55575,2533.3,2532.8,3.94806]
[1727796963511,1.6083,2533.3,2532.9,3.94803]
[1727796963819,5.55574,2533.3,2532.8,3.94806]
[1727796963984,1.6083,2533.3,2532.3,4.6438]
[1727796964315,3.94789,2533.0,2532.6,3.94842]
[1727796964474,3.94794,2533.0,2532.4,3.94873]
[1727796964673,3.94782,2533.1,2532.6,3.94842]
[1727796964997,6.01955981,2533.6,2533.1,3.94764]
[1727796964998,3.94708,2533.6,2533.1,3.94764]
[1727796965186,1.6123,2534.0,2533.3,3.94734]
[1727796965187,5.55871,2534.0,2533.3,3.94734]
[1727796965527,3.94587,2534.3,2533.7,3.9467]
[1727796965728,1.6123,2534.4,2533.8,0.07892608]
[1727796965877,1.6123,2534.4,2533.9,3.94639]
[1727796966518,5.55801,2534.4,2533.9,3.94639]
[1727796966723,5.55801,2534.4,2533.8,4.5165]
[1727796966724,1.6123,2534.4,2533.8,4.5165]
[1727796967018,3.94611,2534.2,2533.7,3.0]
[1727796967173,1.6123,2534.4,2533.5,5.46371]
[1727796967380,3.94667,2533.8,2533.0,3.9478]
[1727796967592,1.6331,2533.7,2532.9,1.5025]
[1727796967819,1.6331,2534.1,2533.6,3.94693]
[1727796968055,1.6331,2534.4,2533.8,3.94662]
[1727796968316,6.01955981,2534.8,2533.6,1.5025]
[1727796968317,0.0836703,2534.3,2533.9,0.04549071]
[1727796968531,3.9454,2534.6,2534.1,3.94616]
[1727796968707,1.6331,2534.7,2534.1,3.94616]
[1727796968708,0.0835669,2534.2,2534.1,3.94616]
[1727796969029,3.94482,2535.0,2534.4,3.94556]
[1727796969385,1.5551,2535.1,2534.6,3.9453]
[1727796969386,0.08355187,2534.9,2534.6,3.9453]
[1727796969731,3.94425,2535.4,2534.3,1.5262]
[1727796969732,1.5832,2535.4,2534.8,3.94508]
[1727796969879,1.5832,2535.4,2534.9,3.94489]
[1727796970081,1.5832,2535.4,2534.9,7.8897]
[1727796970309,1.5832,2535.4,2534.9,3.94481]
[1727796970581,1.5832,2535.4,2534.5,6.94541]
[1727796970582,5.52743,2535.4,2534.5,6.94541]
[1727796970806,5.52743,2535.4,2534.7,3.94513]
[1727796970807,3.94433,2535.3,2534.7,3.94513]
[1727796971013,3.94448,2535.2,2534.7,3.94513]
[1727796971182,5.52735,2535.4,2534.5,3.94551]
[1727796971381,1.5832,2535.4,2534.9,3.94484]
[1727796971717,1.6399,2535.7,2535.2,3.94445]
[1727796971926,3.94388,2535.6,2535.1,3.94449]
[1727796972109,1.6399,2535.7,2534.5,4.792661]
[1727796972110,3.94427,2535.4,2534.7,5.53344]
[1727796972323,3.94427,2535.4,2534.7,3.94514]
[1727796972627,3.94477,2535.0,2534.6,3.0]
[1727796972829,3.94477,2535.0,2534.4,1.5883]
[1727796973119,1.5498,2535.1,2534.7,3.94523]
[1727796973292,1.5498,2535.4,2534.8,3.94505]
[1727796973503,1.5498,2535.4,2534.4,1.5883]
[1727796973701,1.5498,2535.4,2534.7,3.94515]
[1727796973702,3.94439,2535.3,2534.7,3.94515]
[1727796973912,5.4941,2535.4,2534.4,6.087342]
[1727796973913,3.94474,2535.1,2534.4,6.087342]
[1727796974234,9.96342981,2535.6,2534.1,1.5868]
[1727796974235,1.6238,2534.8,2534.1,1.5868]
[1727796974465,1.6238,2534.8,2534.0,3.94624]
[1727796974466,3.94556,2534.5,2534.0,3.94624]
[1727796974738,3.94579,2534.4,2533.8,3.94654]
[1727796974888,3.94548,2534.6,2534.0,3.9463]
[1727796975085,7.64335981,2534.8,2534.0,3.9463]
[1727796975086,3.94534,2534.7,2534.0,3.9463]
[1727796975315,1.6238,2534.8,2534.0,3.9463]
[1727796975501,1.6238,2534.8,2533.8,3.94655]
[1727796975502,3.94564,2534.5,2533.8,3.94655]
[1727796975722,3.94612,2534.2,2533.7,3.0]
[1727796976021,3.94548,2534.6,2533.9,3.94639]
[1727796976198,7.89098,2534.6,2534.0,3.94629]
[1727796976382,3.94594,2534.3,2533.7,3.94669]
[1727796976586,3.94618,2534.1,2533.6,3.0]
[1727796976787,3.94689,2533.7,2533.1,3.94759]
[1727796977043,3.94689,2533.7,2533.2,3.94756]
[1727796977325,3.94655,2533.9,2533.3,3.94736]
[1727796977546,3.94674,2533.8,2533.2,7.89503]
[1727796977759,3.94655,2533.9,2533.2,3.94747]
[1727796977924,3.94698,2533.6,2533.1,3.94771]
[1727796978251,3.94669,2533.8,2533.3,3.94733]
[1727796978407,3.94642,2534.0,2533.5,3.9471]
[1727796978607,3.94664,2533.8,2533.3,3.94731]
[1727796978840,3.94642,2534.0,2533.4,3.94725]
[1727796978841,7.89285,2534.0,2533.4,3.94725]
[1727796979110,1.6665,2534.2,2532.8,4.6202]
[1727796979348,1.5178,2533.6,2533.0,3.0]
[1727796979517,1.5178,2534.0,2533.5,3.94698]
[1727796979852,3.94596,2534.3,2533.5,3.94698]
[1727796979853,3.94609,2534.2,2533.7,3.94667]
[1727796980023,5.4636,2534.4,2533.9,3.94645]
[1727796980207,1.5178,2534.4,2533.9,7.89284]
[1727796980407,1.5178,2534.4,2534.0,3.94631]
[1727796980604,1.5178,2534.4,2534.1,3.94616]
[1727796980842,1.5178,2534.4,2534.2,3.94589]
[1727796981068,6.01955981,2535.2,2534.3,3.94575]
[1727796981069,1.6461,2534.9,2534.3,3.94575]
[1727796981558,3.94541,2534.6,2534.1,3.94606]
[1727796981885,3.9454,2534.6,2534.0,3.94628]
[1727796982144,7.89088,2534.6,2534.1,3.94615]
[1727796982446,7.89088,2534.6,2533.7,4.627]
[1727796982447,3.94594,2534.3,2533.7,3.9467]
[1727796982742,3.94625,2534.1,2533.5,3.94699]
[1727796982945,3.94594,2534.3,2533.7,3.94668]
[1727796983158,3.94594,2534.3,2533.5,3.94699]
[1727796983159,3.94617,2534.1,2533.5,3.94695]
[1727796983446,3.94602,2534.2,2533.8,3.94661]
[1727796983655,3.94602,2534.2,2533.7,3.94678]
[1727796983838,3.946,2534.3,2533.5,0.557395]
[1727796984014,3.946,2534.3,2533.4,1.627]
[1727796984015,3.946,2534.3,2533.8,3.94655]
[1727796984365,2.5034,2534.4,2533.8,3.94655]
[1727796984366,0.08070423,2534.2,2533.8,3.94655]
[1727796984508,2.5034,2534.4,2534.0,3.94625]
[1727796984711,1.0,2534.4,2534.3,3.94586]
[1727796986452,1.0,2534.4,2534.3,4.735047]
[1727796987440,1.0,2534.4,2534.3,7.735047]
[1727796988512,1.0,2534.4,2534.3,6.94586]
[1727796988959,1.0,2534.4,2534.2,3.94601]
[1727796988960,1.0,2534.4,2534.2,3.94594]
[1727796989110,1.0,2534.4,2534.3,3.94586]
[1727796989311,1.0,2534.4,2534.2,3.94601]
[1727796989812,1.0,2534.4,2534.3,3.94586]
[1727796990222,1.0,2534.4,2534.0,1.618]
[1727796990223,1.0,2534.4,2534.0,3.94621]
[1727796990422,1.0,2534.4,2533.7,3.0]
[1727796990423,1.0,2534.4,2533.8,3.94654]
[1727796990618,1.0,2534.4,2534.0,3.94623]
[1727796990858,1.0,2534.4,2533.6,1.6409]
[1727796991174,1.0,2534.4,2534.1,3.94609]
[1727796991375,4.94578,2534.4,2533.7,3.9467]
[1727796991582,3.94604,2534.2,2533.7,7.89341]
[1727796991861,4.94578,2534.4,2533.8,3.94663]
[1727796991862,1.0,2534.0,2533.8,3.94663]
[1727796992021,1.0,2534.0,2533.9,3.94648]
[1727796992489,1.0,2534.0,2533.8,3.94663]
[1727796992663,1.0,2534.0,2533.6,3.9469]
[1727796992664,1.0,2534.0,2533.7,3.0]
[1727796992839,2.6632,2534.0,2533.2,3.94755]
[1727796993158,2.6632,2534.0,2533.0,1.586]
[1727796993159,2.6632,2534.0,2533.4,3.94711]
[1727796993383,2.6632,2534.0,2533.5,3.94709]
[1727796993535,2.6632,2534.0,2533.5,7.89409]
[1727796993748,2.6632,2534.0,2533.6,3.94695]
[1727796993946,2.6632,2534.0,2533.7,3.94678]
[1727796994661,2.6632,2534.0,2533.5,3.94698]
[1727796994866,3.94687,2533.7,2532.9,3.94795]
[1727796995164,3.94687,2533.7,2532.9,3.94793]
[1727796995165,3.9469,2533.7,2532.9,3.94793]
[1727796995465,5.57893,2533.9,2533.2,3.94752]
[1727796995637,3.94667,2533.8,2533.2,7.89497]
[1727796995834,3.94703,2533.6,2532.8,3.94811]
[1727796996034,1.6324,2533.9,2533.3,3.94739]
[1727796996284,1.6324,2533.9,2533.0,1.6621]
[1727796996285,1.6324,2533.9,2533.5,3.94696]
[1727796996427,1.66212662,2535.0,2532.9,0.394811]
[1727796996428,1.96287529,2537.5,2537.2,6.77324099]
[1727796996651,2.32528,2539.8,2537.2,6.77324099]
[1727796996652,4.69300746,2539.8,2539.3,0.05]
[1727796996951,4.69300746,2539.8,2538.8,0.05]
[1727796996952,0.10080444,2539.8,2538.8,0.05]
[1727796997179,6.01955981,2539.5,2539.0,0.05]
[1727796997389,2.00395887,2539.7,2538.9,0.05]
[1727796997390,0.99048599,2539.4,2538.9,0.05]
[1727796997678,7.61405981,2539.7,2539.4,0.05]
[1727796997866,7.61405981,2539.7,2538.9,0.05]
[1727796997867,7.61405981,2539.7,2539.2,0.05]
[1727796998070,7.61405981,2539.7,2539.0,0.05]
[1727796998247,0.25398503,2539.6,2539.0,0.05]
[1727796998443,6.01955981,2539.3,2538.5,0.1]
[1727796998643,0.60195598,2539.2,2538.5,0.05]
[1727796998841,6.01955981,2538.9,2538.5,0.05]
[1727796999184,6.01955981,2538.9,2538.3,1.23007839]
[1727796999185,0.05899315,2538.8,2538.3,1.23007839]
[1727796999337,6.01955981,2538.5,2538.3,1.23007839]
[1727796999544,0.60195598,2538.4,2538.3,0.69191909]
[1727796999754,0.6619784,2538.4,2538.3,0.41082695]
[1727796999930,0.6619784,2538.4,2538.3,0.05135336]
[1727797000128,0.6619784,2538.4,2538.2,1.64010452]
[1727797000129,4.6014984,2538.4,2538.2,1.17882512]
[1727797000388,0.6619784,2538.4,2538.2,1.17882512]
[1727797000532,0.66815382,2538.3,2538.2,1.17882512]
[1727797000747,0.72586782,2538.3,2538.2,1.17882512]
[1727797003953,0.057714,2538.3,2538.2,1.22882512]
[1727797004170,6.01955981,2538.5,2538.2,5.16861512]
[1727797004340,0.05748689,2538.3,2538.2,5.16861512]
[1727797004683,6.01955981,2538.5,2538.2,1.22882512]
[1727797004836,0.05739857,2538.3,2538.2,1.22882512]
[1727797005043,6.01955981,2538.5,2538.2,1.17882512]
[1727797005267,0.05723123,2538.3,2538.2,1.17882512]
[1727797005572,0.05739857,2538.3,2538.2,1.17882512]
[1727797005938,3.99703857,2538.3,2538.2,1.17882512]
[1727797006662,0.05739857,2538.3,2538.2,1.17882512]
[1727797006977,3.9399,2538.2,2537.6,0.05]
[1727797007139,6.01955981,2538.0,2537.6,0.05]
[1727797007334,3.09377873,2538.0,2537.6,0.05]
[1727797007544,0.05729161,2537.9,2537.6,0.05]
[1727797008502,0.05729161,2537.9,2537.8,0.1]
[1727797008849,6.62151579,2538.4,2537.8,0.1]
[1727797009049,0.05675376,2537.9,2537.8,4.04041]
[1727797009249,6.62151579,2538.4,2537.8,4.04041]
[1727797009250,6.01955981,2538.4,2538.0,0.05]
[1727797010590,10.95498279,2538.4,2538.0,0.05]
[1727797010783,7.01543279,2538.4,2538.0,0.05]
[1727797011158,3.93983,2538.2,2537.7,0.05]
[1727797011495,6.01955981,2537.9,2537.7,0.05]
[1727797011696,9.95984981,2537.9,2537.7,0.05]
[1727797011988,9.95984981,2537.9,2537.0,5.58761]
[1727797011989,3.94043,2537.8,2537.3,0.1]
[1727797012169,6.01955981,2537.5,2537.3,0.1]
[1727797012357,6.01955981,2537.5,2537.3,0.05]
[1727797012358,2.3619496,2537.5,2537.3,0.05]
[1727797012687,3.94114,2537.4,2537.1,0.1]
[1727797012846,2.99220456,2537.5,2537.1,0.1]
[1727797013304,6.93312456,2537.5,2537.1,0.05]
[1727797013445,6.93312456,2537.5,2536.9,0.05]
[1727797013446,5.47478,2537.7,2537.3,0.1]
[1727797013648,5.47478,2537.7,2536.9,0.05]
[1727797013649,7.55365981,2537.7,2536.9,0.05]
[1727797013881,7.55365981,2537.7,2536.5,2.1139]
[1727797013882,6.01955981,2537.0,2536.6,0.05]
[1727797014058,3.82420565,2537.0,2536.6,0.05]
[1727797014250,0.05416626,2536.9,2536.7,0.05]
[1727797014484,0.05416626,2536.9,2536.8,0.05]
[1727797014855,3.94145,2537.2,2536.9,0.05]
[1727797015076,6.01955981,2537.0,2536.9,0.05]
[1727797015281,6.01955981,2537.0,2536.9,0.1]
[1727797016368,6.01955981,2537.0,2536.9,0.05]
[1727797017068,6.01955981,2537.0,2535.8,3.9434]
[1727797017268,3.9412,2537.3,2536.6,3.94227]
[1727797017500,3.94137,2537.2,2536.4,7.88501]
[1727797017666,3.94137,2537.2,2536.5,3.94243]
[1727797017870,0.39412,2537.3,2536.6,0.07883783]
[1727797018093,0.39412,2537.3,2536.5,0.07883782]
[1727797018271,3.94137,2537.2,2536.4,3.94244]
[1727797018483,0.39412,2537.3,2536.5,3.94242]
[1727797018695,0.39412,2537.3,2536.4,3.94244]
[1727797019004,3.94148,2537.2,2536.5,3.94231]
[1727797019181,0.39412,2537.3,2536.7,3.94209]
[1727797019504,3.9412,2537.3,2536.7,3.0]
[1727797019707,6.01955981,2537.4,2536.1,6.94299]
[1727797020003,3.94144,2537.2,2536.5,3.94229]
[1727797020371,6.01955981,2537.0,2536.4,4.6662]
[1727797020703,3.94182,2536.9,2536.4,4.6662]
[1727797020867,10.95742079,2537.0,2536.4,4.6662]
[1727797021067,10.95742079,2537.0,2536.4,8.60879]
[1727797021325,10.95742079,2537.0,2536.4,4.6662]
[1727797021519,3.94197,2536.8,2536.4,1.6662]
[1727797021675,3.94232,2536.6,2536.0,5.60938]
[1727797022010,1.41201963,2536.8,2536.2,3.9428]
[1727797022366,1.41201963,2536.8,2536.1,3.94292]
[1727797022586,9.96123981,2537.0,2536.1,3.94292]
[1727797022791,3.94227,2536.7,2536.0,1.6662]
[1727797023024,6.01955981,2536.6,2535.6,1.6168]
[1727797023226,0.60195598,2536.5,2535.9,3.94322]
[1727797023411,0.60195598,2536.5,2535.6,1.6168]
[1727797023622,0.60195598,2536.5,2535.3,3.94419]
[1727797023623,9.96248981,2536.2,2535.3,3.94419]
[1727797023910,6.01955981,2536.2,2535.5,3.9439]
[1727797024119,6.01955981,2537.0,2536.0,3.94318]
[1727797024323,0.76481598,2536.9,2535.6,3.94377]
[1727797024489,3.94199,2536.8,2536.0,1.5109]
[1727797024696,3.94221,2536.7,2535.9,3.94334]
[1727797024931,3.94221,2536.7,2535.7,3.94367]
[1727797024932,0.78842,2536.6,2535.5,6.94396]
[1727797025137,1.6286,2537.1,2536.3,3.94269]
[1727797025288,1.6286,2537.1,2536.5,3.94235]
[1727797025643,3.94185,2536.9,2536.1,7.88594]
[1727797025935,6.01955981,2537.0,2536.3,3.94273]
[1727797026294,6.01955981,2537.0,2536.3,7.8854]
[1727797026604,6.01955981,2537.0,2535.8,1.5063]
[1727797026605,3.94205,2536.8,2535.8,1.5063]
[1727797026806,3.94269,2536.4,2535.1,1.6048]
[1727797027028,0.394205,2536.7,2536.2,3.94275]
[1727797027197,6.01955981,2537.0,2536.2,3.94275]
[1727797027198,9.96132981,2537.0,2536.2,3.94275]
[1727797027390,9.96132981,2537.0,2536.0,3.94311]
[1727797027391,6.01955981,2537.0,2536.0,3.94311]
[1727797027703,3.94215,2536.7,2535.5,5.53871]
[1727797028020,1.6286,2537.1,2535.9,3.0]
[1727797028202,1.6286,2537.1,2536.9,3.94174]
[1727797028391,6.01955981,2537.4,2536.9,3.94174]
[1727797028595,1.15162898,2537.4,2537.1,3.94149]
[1727797028834,1.5559,2537.6,2537.1,3.94139]
[1727797029128,0.04974565,2537.3,2537.1,3.94139]
[1727797029443,0.04960065,2537.2,2537.1,3.94139]
[1727797029593,1.5559,2537.6,2537.1,3.9415]
[1727797029790,1.5559,2537.6,2537.2,3.94134]
[1727797030009,1.5559,2537.6,2536.8,3.94183]
[1727797030210,2.31344598,2537.6,2536.6,3.94216]
[1727797030416,2.31344598,2537.6,2536.8,3.94196]
[1727797030417,3.94094,2537.5,2536.8,3.94196]
[1727797030603,3.94089,2537.5,2536.8,3.94188]
[1727797030915,2.31344598,2537.6,2536.5,3.0]
[1727797030916,6.01955981,2537.4,2536.5,3.0]
[1727797031237,3.94146,2537.2,2536.5,3.94235]
[1727797031410,3.94174,2537.0,2536.3,5.53743]
[1727797031610,3.94174,2537.0,2535.9,3.94331]
[1727797031611,3.94174,2537.0,2536.1,3.94296]
[1727797031842,3.94211,2536.8,2536.2,3.94288]
[1727797032048,3.94211,2536.8,2535.9,1.6229]
[1727797032049,1.5266,2536.8,2535.9,3.94323]
[1727797032214,3.94237,2536.6,2535.9,3.94333]
[1727797032553,1.5266,2536.8,2536.1,3.94299]
[1727797032836,1.5266,2536.8,2535.5,1.6229]
[1727797032837,3.94247,2536.5,2535.9,3.94327]
[1727797033143,6.01955981,2536.6,2535.7,3.94359]
[1727797033438,1.5266,2536.8,2535.5,1.6229]
[1727797033439,0.60195598,2536.5,2535.5,1.6229]
[1727797033647,1.5266,2536.8,2536.1,3.94296]
[1727797033648,3.9422,2536.7,2536.1,3.94296]
[1727797033814,3.94244,2536.5,2535.9,7.88661]
[1727797034578,1.5266,2536.8,2535.5,1.6229]
[1727797034835,1.5266,2536.8,2536.2,3.94282]
[1727797035038,3.94161,2537.1,2536.4,3.94258]
[1727797035340,3.94161,2537.1,2536.5,3.94239]
[1727797035556,3.94161,2537.1,2536.3,3.94263]
[1727797035719,3.94185,2536.9,2536.4,3.94257]
[1727797036063,3.9419,2536.9,2536.3,3.94267]
[1727797036219,3.94168,2537.0,2536.2,5.55612]
[1727797036220,4.730338,2536.8,2536.2,5.55612]
[1727797036417,3.94222,2536.7,2536.1,6.94303]
[1727797036639,3.94199,2536.8,2536.2,3.94281]
[1727797036842,3.94191,2536.9,2536.1,3.943]
[1727797037044,3.94175,2537.0,2536.3,3.94262]
[1727797037242,3.94167,2537.0,2536.5,3.94243]
[1727797037544,7.88347,2537.0,2536.4,3.94258]
[1727797037952,7.88343,2537.0,2536.4,3.94258]
[1727797038251,4.70653598,2537.2,2536.4,3.94258]
[1727797038406,5.57238,2537.3,2536.7,3.94199]
[1727797038642,3.94061,2537.7,2536.4,0.394258]
[1727797038643,4.69828598,2537.6,2536.8,3.97786143]
[1727797038810,3.94099,2537.5,2536.9,3.94174]
[1727797039409,1.6329,2537.7,2537.2,3.94131]
[1727797039604,5.57354,2537.7,2537.2,3.94131]
[1727797039854,2.539762,2538.0,2537.5,3.94079]
[1727797040007,0.998462,2538.0,2537.5,3.94085]
[1727797040516,0.998462,2538.0,2537.7,3.94056]
[1727797040708,0.998462,2538.0,2537.5,3.94079]
[1727797040910,0.998462,2538.0,2537.5,0.394079]
[1727797041138,0.998462,2538.0,2537.9,3.94026]
[1727797041396,0.998462,2538.0,2537.8,3.9404]
[1727797041556,0.998462,2538.0,2537.7,6.94054]
[1727797041847,0.04511784,2537.9,2537.7,3.0]
[1727797042032,0.04511784,2537.9,2537.8,3.9404]
[1727797042727,0.04511784,2537.9,2537.7,7.75357494]
[1727797042728,0.89357984,2538.0,2537.9,3.94026]
[1727797043050,0.89357984,2538.0,2537.7,3.94057]
[1727797043347,0.89357984,2538.0,2537.9,3.94026]
[1727797043852,0.89357984,2538.0,2537.9,4.75328494]
[1727797044024,0.89357984,2538.0,2537.9,3.94026]
[1727797044356,0.89357984,2538.0,2537.9,4.75328494]
[1727797044357,0.93712954,2538.0,2537.9,4.75328494]
[1727797044518,0.93712954,2538.0,2537.9,0.81302494]
[1727797044720,0.89357984,2538.0,2537.9,3.94026]
[1727797045022,0.89357984,2538.0,2537.7,4.75354494]
[1727797045023,0.93738024,2538.0,2537.7,4.75354494]
[1727797045240,0.93738024,2538.0,2537.6,1.21884388]
[1727797045241,0.93738024,2538.0,2537.6,0.81302494]
[1727797045541,0.93738024,2538.0,2537.5,0.81302494]
[1727797045542,1.42511426,2538.0,2537.5,0.81302494]
[1727797045745,1.42511426,2538.0,2537.4,1.21884388]
[1727797045746,1.42511426,2538.0,2537.2,0.81302494]
[1727797045906,3.94082,2537.6,2537.1,3.94142]
[1727797046109,6.01955981,2537.8,2536.9,0.81302494]
[1727797046345,0.04377335,2537.5,2537.1,3.94141]
[1727797046554,7.88103,2537.8,2537.2,0.06709704]
[1727797046711,7.88103,2537.8,2537.1,3.94141]
[1727797046712,0.04348028,2537.4,2537.1,3.94141]
[1727797046913,4.83379984,2538.0,2537.5,3.94088]
[1727797047144,3.94034,2537.9,2537.3,7.88218]
[1727797047458,4.83379984,2538.0,2537.5,3.94088]
[1727797047743,4.83379984,2538.0,2537.9,3.94026]
[1727797047744,0.89357984,2538.0,2537.9,3.94026]
[1727797049259,0.89357984,2538.0,2537.8,3.94039]
[1727797049429,0.89357984,2538.0,2537.7,3.94055]
[1727797049841,0.89357984,2538.0,2537.6,3.94063]
[1727797050026,0.89357984,2538.0,2537.7,3.94054]
[1727797050227,0.89357984,2538.0,2537.4,0.81302494]
[1727797050561,4.83368984,2538.0,2537.3,6.34480494]
[1727797050861,4.83368984,2538.0,2537.3,5.53178]
[1727797050862,0.89357984,2538.0,2537.3,5.53178]
[1727797051015,0.89357984,2538.0,2537.6,3.94066]
[1727797051216,0.89357984,2538.0,2537.7,3.94055]
[1727797051627,0.89357984,2538.0,2537.6,3.94064]
[1727797051819,0.89357984,2538.0,2537.7,3.94053]
[1727797052021,0.89357984,2538.0,2537.8,3.94041]
[1727797052326,0.89357984,2538.0,2537.8,3.94033]
[1727797052558,0.89357984,2538.0,2537.9,3.94026]
[1727797052728,0.89357984,2538.0,2537.9,4.334286]
[1727797053239,4.83369984,2538.0,2537.5,3.94086]
[1727797053425,4.83369984,2538.0,2537.4,3.0]
[1727797053426,0.89357984,2538.0,2537.4,3.0]
[1727797053620,0.89357984,2538.0,2537.6,3.94065]
[1727797053844,0.89357984,2538.0,2537.9,3.94026]
[1727797054032,0.89357984,2538.0,2537.7,3.94046]
[1727797054231,0.89357984,2538.0,2537.2,5.40372494]
[1727797054435,4.83372984,2538.0,2537.5,3.94076]
[1727797054662,4.83372984,2538.0,2537.4,3.0]
[1727797054663,3.98470578,2537.9,2537.4,3.0]
[1727797054868,1.6412,2537.8,2537.0,3.94156]
[1727797055173,3.9408,2537.6,2537.1,3.94149]
[1727797055386,3.94105,2537.4,2536.9,3.94178]
[1727797055547,3.94142,2537.2,2536.7,3.94201]
[1727797055775,3.94157,2537.1,2536.6,3.94228]
[1727797055991,0.04368134,2537.1,2536.7,3.94212]
[1727797056178,3.98524134,2537.1,2536.6,3.94221]
[1727797056340,3.98524134,2537.1,2536.4,1.911258]
[1727797056341,0.04368134,2537.1,2536.4,1.911258]
[1727797056585,0.04368134,2537.1,2536.2,3.9429]
[1727797056586,3.94212,2536.7,2536.2,3.9429]
[1727797056796,3.9423,2536.6,2536.2,3.9429]
[1727797057113,3.98536784,2536.6,2536.1,3.94294]
[1727797057397,3.94244,2536.5,2535.9,3.94327]
[1727797057573,3.98490631,2536.5,2535.8,3.94339]
[1727797057768,3.98490631,2536.5,2536.0,3.94319]
[1727797057974,0.04246631,2536.5,2536.0,3.94319]
[1727797058171,0.04246631,2536.5,2536.1,3.94297]
[1727797058495,5.55875,2537.1,2536.3,3.94274]
[1727797058496,0.04235386,2536.4,2536.3,3.94274]
[1727797058904,3.94197,2536.8,2536.1,3.94297]
[1727797058905,3.94228,2536.6,2536.2,0.07699764]
[1727797059123,0.04218647,2536.4,2536.1,3.94297]